Workbook

Sheet Sheet1
A2: x | B2: Income Statement for Go Nuts for Donuts from 1/1/2018-12/31/2018
C3: FY2018 | G3: Revenue Notes | J3: Account | K3: Debit | L3: Credit
B4: Revenue | C4: =H6 -> 150000 | D4: =getformula(C4) -> <-- =H6 | G4: Units | H4: 100000 | I4: =getformula(H4) -> <-- 100000 | J4: Cash | K4: 150000
B5: COGS | C5: =H13 -> 57000 | D5: =getformula(C5) -> <-- =H13 | G5: Price | H5: 1.5 | I5: <-- 1.5 | J5: RE | L5: 150000
B6: SGA | C6: =H19 -> 27000 | D6: =getformula(C6) -> <-- =H19 | G6: Revenue | H6: =H4*H5 -> 150000 | I6: <-- =H4*H5 | J6: RE | K6: 57000
B7: EBIT | C7: =C4-C5-C6 -> 66000 | D7: =getformula(C7) -> <-- =C4-C5-C6 | J7: Inventory | L7: 31000
B8: Interest Expense, Net | C8: =H25 -> 4800 | D8: =getformula(C8) -> <-- =H25 | G8: COGS Notes | J8: Cash | L8: 25000
B9: Pre-tax Income | C9: =C7-C8 -> 61200 | D9: =getformula(C9) -> <-- =C7-C8 | G9: Inventory | H9: 30000 | I9: =getformula(H9) -> <-- 30000 | J9: PPE | L9: 1000
B10: Taxes | C10: =C9*H27 -> 12852 | D10: <-- =C9*H27 | G10: Donut Making Team | H10: 25000 | I10: <-- 25000 | J10: RE | K10: 27000
B11: Net Income | C11: =C9-C10 -> 48348 | D11: <-- =C9-C10 | G11: Write off Inventory | H11: 1000 | I11: <-- 1000 | J11: Accrued Expenses | L11: 5000
G12: Depreciation | H12: 1000 | I12: <-- 1000 | J12: Cash | L12: 22000
B13: Gross profit Margin | C13: =(C4-C5)/C4 -> 0.62 | D13: <-- =(C4-C5)/C4 | G13: Total | H13: =SUM(H9:H12) -> 57000 | I13: <-- =SUM(H9:H12) | J13: RE | K13: 4800
B14: EPS | C14: =C11/H32 -> 1.93392 | D14: <-- =C11/H32 | J14: Cash | L14: 4800
B15: EBITDA | C15: =C7+H12 -> 67000 | D15: <-- =C7+H12 | G15: SGA Notes | J15: RE | K15: 12852
G16: Cashiers | H16: 25000 | I16: =getformula(H16) -> <-- 25000 | J16: Cash | L16: 12852
A17: x | B17: Balance Sheet for Go Nuts for Donuts | G17: Legal | H17: 1500 | I17: <-- 1500 | J17: Cash | K17: 100000
C18: 2018-01-01 | D18: 2018-12-31 | G18: Office supplies | H18: 500 | I18: <-- 500 | J18: Common Stock | L18: 100000
B19: Assets | E19: =D20-C20 -> 155348 | G19: Total | H19: =SUM(H16:H18) -> 27000 | I19: <-- =SUM(H16:H18) | J19: RE | K19: 15000
B20: Cash | C20: 38000 | D20: =C20+M28 -> 193348 | E20: =getformula(D20) -> <-- =C20+M28 | J20: Cash | L20: 15000
B21: A/R | C21: 0 | D21: =C21 -> 0 | E21: =getformula(D21) -> <-- =C21 | G21: Interest Notes | J21: Cash | K21: 10000
B22: Inventory | C22: 20000 | D22: =C22+M30 -> 9000 | E22: <-- =C22+M30 | G22: Interest Income | H22: 200 | I22: =getformula(H22) -> <-- 200 | J22: LTD | L22: 10000
B23: PP&E | C23: 67000 | D23: =C23+M31 -> 71000 | E23: <-- =C23+M31 | G23: New Loan interest | H23: =10000*0.1 -> 1000 | I23: <-- =10000*0.1 | J23: Inventory | K23: 20000
B24: Intangible | C24: 0 | D24: =C24 -> 0 | E24: <-- =C24 | G24: Interest pmts | H24: 4000 | I24: <-- 4000 | J24: Cash | L24: 20000
B25: Total Assets | C25: =SUM(C20:C24) -> 125000 | D25: =SUM(D20:D24) -> 273348 | E25: <-- =SUM(D20:D24) | G25: Total Expense | H25: =H24+H23-H22 -> 4800 | I25: <-- =H24+H23-H22 | J25: PPE | K25: 5000
J26: Cash | L26: 5000
B27: Liabilities | G27: Tax rate | H27: 0.21 | K27: =getformula(K28) -> <-- =SUMIF($J$4:$J$26,$J28,K$4:K$26)
B28: Accrued Expenses | C28: 4000 | D28: =C28-M32 -> 9000 | E28: =getformula(D28) -> <-- =C28-M32 | J28: Cash | K28: =SUMIF($J$4:$J$26,$J28,K$4:K$26) -> 260000 | L28: =SUMIF($J$4:$J$26,$J28,L$4:L$26) -> 104652 | M28: =K28-L28 -> 155348 | N28: =getformula(M28) -> <-- =K28-L28
B29: Long-term debt | C29: 40000 | D29: =C29-M34 -> 50000 | E29: <-- =C29-M34 | G29: Shares Notes | J29: RE | K29: =SUMIF($J$4:$J$26,$J29,K$4:K$26) -> 116652 | L29: 150000 | M29: =K29-L29 -> -33348 | N29: =getformula(M29) -> <-- =K29-L29
B30: Total Liabilities | C30: =SUM(C28:C29) -> 44000 | D30: =SUM(D28:D29) -> 59000 | E30: <-- =SUM(D28:D29) | G30: Beg. Share count | H30: 20000 | I30: 0.5 | J30: Inventory | K30: 20000 | L30: 31000 | M30: -11000 | N30: <-- =K30-L30
G31: Mid point Share Count | H31: 30000 | I31: 0.5 | J31: PPE | K31: 5000 | L31: 1000 | M31: 4000 | N31: <-- =K31-L31
B32: Equity | G32: EPS Share Count | H32: =H30*I30+H31*I31 -> 25000 | I32: =getformula(H32) -> <-- =H30*I30+H31*I31 | J32: Accrued Expenses | K32: 0 | L32: 5000 | M32: -5000 | N32: <-- =K32-L32
B33: Common Stock | C33: 50000 | D33: =C33-M33 -> 150000 | E33: =getformula(D33) -> <-- =C33-M33 | J33: Common Stock | K33: 0 | L33: 100000 | M33: -100000 | N33: <-- =K33-L33
B34: Retained Earnings | C34: =C25-C30-C33 -> 31000 | D34: =C34-M29 -> 64348 | E34: <-- =C34-M29 | G34: Dividend Notes | J34: LTD | K34: 0 | L34: 10000 | M34: -10000 | N34: <-- =K34-L34
B35: Total Equity | C35: =SUM(C33:C34) -> 81000 | D35: =SUM(D33:D34) -> 214348 | E35: <-- =SUM(D33:D34) | G35: Dividend/share | H35: 0.5
G36: Share Count | H36: 30000
B37: Balance Sheet Check | C37: =C25-C30-C35 -> 0 | D37: =D25-D30-D35 -> 0 | G37: Total Dividend | H37: =H36*H35 -> 15000
A39: x | B39: Cash Flow Statement For Go Nuts for Donuts 1/1/2018-12/31/2018
B41: Cash at beginning | C41: =C20 -> 38000 | D41: =getformula(C41) -> <-- =C20
B42: Cash from operations
B43: Net Income | C43: =C11 -> 48348 | D43: =getformula(C43) -> <-- =C11
B44: D&A | C44: =H12 -> 1000 | D44: <-- =H12
B45: Changes in Working Capital
B46: Inventory | C46: =-(D22-C22) -> 11000 | D46: =getformula(C46) -> <-- =-(D22-C22)
B47: Accrued Expenses | C47: =D28-C28 -> 5000 | D47: <-- =D28-C28
B48: Total | C48: =SUM(C43:C47) -> 65348 | D48: <-- =SUM(C43:C47)
B50: Cash from investing
B51: Capex | C51: =-5000 -> -5000 | D51: =getformula(C51) -> <-- =-5000
B52: Asset sales | C52: 0 | D52: <-- 0
B53: Asset write-offs | C53: 0 | D53: <-- 0
B54: Total | C54: =SUM(C51:C53) -> -5000 | D54: <-- =SUM(C51:C53)
B56: Cash from financing
B57: Debt Issuance | C57: 10000 | D57: =getformula(C57) -> <-- 10000
B58: Debt repayment | C58: 0 | D58: <-- 0
B59: Stock issuance | C59: 100000 | D59: <-- 100000
B60: Stock repurchase | C60: 0 | D60: <-- 0
B61: Dividends paid | C61: =-H37 -> -15000 | D61: <-- =-H37
B62: Total | C62: =SUM(C57:C61) -> 95000 | D62: <-- =SUM(C57:C61)
B64: Change in cash | C64: =C62+C54+C48 -> 155348 | D64: =getformula(C64) -> <-- =C62+C54+C48
B65: Cash at end | C65: =C64+C41 -> 193348 | D65: <-- =C64+C41
B66: Check against BS | C66: =C65-D20 -> 0 | D66: <-- =C65-D20
